Workbook

Sheet Tabelle1
A1: Kategorie | B1: Risikolabel | C1: Zeitraum | D1: Outputrisiko | F1: Basisrisiko je 100.000 | G1: männlich | H1: weiblich | I1: Kinder bis unter 14 | J1: Junge bis unter 14 | K1: Mädchen bis unter 14 | L1: Jugendliche von 14 bis unter 18 | M1: Jugendlicher von 14 bis unter 18 | N1: Jugendliche von 14 bis unter 18 | O1: Heranwachsende von 18 bis unter 21 | P1: Heranwachsender von 18 bis unter 21 | Q1: Heranwachsende von 18 bis unter 21 | R1: Erwachsene von 21 bis unter 60 | S1: Erwachsener von 21 bis unter 60 | T1: Erwachsene von 21 bis unter 60 | U1: Erwachsene 60 und älter | V1: Erwachsener 60 und älter | W1: Erwachsene 60 und älter | X1: Herkunft der Zahlen | Y1: Verlinkung | Z1: Evidenz (Unsicherheit in den Daten | AA1: Referenzjahr | AB1: Referenzgruppe | AC1: Was sagt Ihnen diese Zahl? [Definition und warum wichtig für Sie?] | AD1: unique
A2: Finanzen | B2: Verluste mit Immobilien | C2: Innerhalb eines Jahres | D2: =F2/100000 -> 0.111 | F2: 11100 | G2: 1 | H2: 1 | I2: 1 | J2: 1 | K2: 1 | L2: 1 | M2: 1 | N2: 1 | O2: 1 | P2: 1 | Q2: 1 | R2: 1 | S2: 1 | T2: 1 | U2: 1 | V2: 1 | W2: 1 | X2: Bach, S., Popien, P., & Thiemann, A. (2014). Renditen von … | Z2: Sehr niedrige Qualität der Daten (Alter der Daten) | AA2: 2011 | AB2: Immobilieninvestoren
A3: Gesundheit | B3: Verletzung durch Autounfall | C3: Innerhalb eines Jahres | D3: =F3/100000 -> 0.00256 | F3: 256 | G3: 1 | H3: 1 | I3: 0.39 | J3: 0.39 | K3: 0.39 | L3: 0.39 | M3: 0.39 | N3: 0.39 | O3: 1.61 | P3: 1.61 | Q3: 1.61 | R3: 1.61 | S3: 1.61 | T3: 1.61 | U3: 0.39 | V3: 0.39 | W3: 0.39 | X3: Statistisches Bundesamt (2018). | Y3: https://www.destatis.de | Z3: Hohe Qualität der Daten | AA3: 2018 | AB3: Verbraucher | AC3: Debatten im Internet müssen stark moderiert werden, da viele Menschen in der scheinbaren Anonymität sprachlich oft entgleisen oder andere Menschen bedrohen. | AD3: 51
A4: Gesundheit | B4: Bei Autounfall sterben | C4: Innerhalb eines Jahres | D4: =F4/100000 -> 2e-05 | F4: 2 | G4: 1 | H4: 1 | I4: 0.39 | J4: 0.39 | K4: 0.39 | L4: 0.39 | M4: 0.39 | N4: 0.39 | O4: 1.61 | P4: 1.61 | Q4: 1.61 | R4: 1.61 | S4: 1.61 | T4: 1.61 | U4: 0.39 | V4: 0.39 | W4: 0.39 | X4: Statistisches Bundesamt (2018). | Y4: https://www.destatis.de | Z4: Hohe Qualität der Daten | AA4: 2018 | AB4: Verbraucher | AC4: Verschiedene Formen sowohl in Textform, aber auch mit Bildern oder in Kommunikationsmedien zählen hierzu. | AD4: 52
A5: Gesundheit | B5: Bei Fußgängerunfall sterben | C5: Innerhalb eines Jahres | D5: =F5/100000 -> 1e-05 | F5: 1 | G5: 1 | H5: 1 | I5: 0.39 | J5: 0.39 | K5: 0.39 | L5: 0.39 | M5: 0.39 | N5: 0.39 | O5: 1.61 | P5: 1.61 | Q5: 1.61 | R5: 1.61 | S5: 1.61 | T5: 1.61 | U5: 0.39 | V5: 0.39 | W5: 0.39 | X5: Statistisches Bundesamt (2018). | Y5: https://www.destatis.de | Z5: Hohe Qualität der Daten | AA5: 2018 | AB5: Verbraucher | AC5: Hierzu zählen alle Formen von Privatsphäreverletzungen, offline und online. | AD5: 16
A6: Recht | B6: Opfer von Handtaschenraub | C6: Innerhalb eines Jahres | D6: =F6/100000 -> 1.97119659e-05 | F6: 1.97119659 | G6: 0.22 | H6: 1.75 | I6: 0.05 | J6: 0.04 | K6: 0.07 | L6: 0.75 | M6: 0.41 | N6: 1.11 | O6: 1.46 | P6: 0.51 | Q6: 2.53 | R6: 0.92 | S6: 0.23 | T6: 1.62 | U6: 1.57 | V6: 0.24 | W6: 2.65 | X6: BMI (2018). Polizeiliche Kriminalstatistik (PKS) 2018. | Y6: https://www.bka.de/DE/AktuelleInformationen/StatistikenLagebilder/PolizeilicheKriminalstatistik/PKS2018/pks2018_node.html | Z6: Moderate Qualität der Daten (Dunkelziffer) | AA6: 2018 | AB6: Verbraucher | AC6: Hierzu zählen alle Formen von digitaler Kriminalität. | AD6: 19
A7: Recht | B7: Opfer von Totschlag | C7: Innerhalb eines Jahres | D7: =F7/100000 -> 2.184984456e-05 | F7: 2.184984456 | G7: 1.5 | H7: 0.52 | I7: 0.35 | J7: 0.43 | K7: 0.26 | L7: 0.96 | M7: 1.36 | N7: 0.52 | O7: 2.59 | P7: 3.89 | Q7: 1.14 | R7: 1.39 | S7: 2.12 | T7: 0.62 | U7: 0.39 | V7: 0.41 | W7: 0.38 | X7: BMI (2018). Polizeiliche Kriminalstatistik (PKS) 2018. | Y7: https://www.bka.de/DE/AktuelleInformationen/StatistikenLagebilder/PolizeilicheKriminalstatistik/PKS2018/pks2018_node.html | Z7: Moderate Qualität der Daten (Dunkelziffer) | AA7: 2018 | AB7: Verbraucher | AC7: Persönliche digitale Daten, die gestohlen werden, umfassen zum Beispiel Anschriftdaten, Kontodaten oder auch Logins. | AD7: 20
A8: Recht | B8: Auto wird aufgebrochen | C8: Innerhalb eines Jahres | D8: =F8/100000 -> 0.00538 | F8: 538 | G8: 1 | H8: 1 | I8: 1 | J8: 1 | K8: 1 | L8: 1 | M8: 1 | N8: 1 | O8: 1 | P8: 1 | Q8: 1 | R8: 1 | S8: 1 | T8: 1 | U8: 1 | V8: 1 | W8: 1 | X8: BMI (2018). Polizeiliche Kriminalstatistik (PKS) 2018. | Y8: https://www.bka.de/DE/AktuelleInformationen/StatistikenLagebilder/PolizeilicheKriminalstatistik/PKS2018/pks2018_node.html | Z8: Moderate Qualität der Daten (Dunkelziffer) | AA8: 2018 | AB8: Kraftfahrzeuge | AC8: Es wird erlebt, dass ein Virus o.ä. das eigene Gerät kompromittiert. | AD8: 21
A9: Recht | B9: Einer Straftat verdächtigt werden | C9: Innerhalb eines Jahres | D9: =F9/100000 -> 0.02478 | F9: 2478 | G9: 1 | H9: 1 | I9: 1 | J9: 1 | K9: 1 | L9: 1 | M9: 1 | N9: 1 | O9: 1 | P9: 1 | Q9: 1 | R9: 1 | S9: 1 | T9: 1 | U9: 1 | V9: 1 | W9: 1 | X9: BMI (2018). Polizeiliche Kriminalstatistik (PKS) 2018. | Y9: https://www.bka.de/DE/AktuelleInformationen/StatistikenLagebilder/PolizeilicheKriminalstatistik/PKS2018/pks2018_node.html | Z9: Moderate Qualität der Daten (Dunkelziffer) | AA9: 2018 | AB9: Verbraucher | AC9: Es wird erlebt, dass der eigene Standort ungewollt von einem digitalen Dienst oder Gerät abgefragt wird. | AD9: 22
A10: Recht | B10: In die Wohnung wird eingebrochen | C10: Innerhalb eines Jahres | D10: =F10/100000 -> 0.00118 | F10: 118 | G10: 1 | H10: 1 | I10: 1 | J10: 1 | K10: 1 | L10: 1 | M10: 1 | N10: 1 | O10: 1 | P10: 1 | Q10: 1 | R10: 1 | S10: 1 | T10: 1 | U10: 1 | V10: 1 | W10: 1 | X10: BMI (2018). Polizeiliche Kriminalstatistik (PKS) 2018. | Y10: https://www.bka.de/DE/AktuelleInformationen/StatistikenLagebilder/PolizeilicheKriminalstatistik/PKS2018/pks2018_node.html | Z10: Moderate Qualität der Daten (Dunkelziffer) | AA10: 2018 | AB10: Verbraucher | AC10: Es wird erlebt, dass ein Onlinepasswort geknackt wurde. | AD10: 23
A11: Gesundheit | B11: Durch Erreger in Lebensmitteln erkranken | C11: Innerhalb eines Jahres | D11: =F11/100000 -> 0.001219512195 | F11: =100000/82000000*100000 -> 121.9512195 | G11: 1 | H11: 1 | I11: 1 | J11: 1 | K11: 1 | L11: 1 | M11: 1 | N11: 1 | O11: 1 | P11: 1 | Q11: 1 | R11: 1 | S11: 1 | T11: 1 | U11: 1 | V11: 1 | W11: 1 | X11: BfR (2017). Schutz vor Lebensmittelinfektionen im Privathaushalt. | Y11: https://www.bfr.bund.de/cm/350/verbrauchertipps_schutz_vor_lebensmittelinfektionen_im_privathaushalt.pdf | Z11: Sehr niedrige Qualität der Daten (Dunkelziffer) | AA11: 2017 | AB11: Verbraucher | AC11: Es wird erlebt, dass Fremde in das eigene W-Lan-Netz eindringen. | AD11: 24
A12: Versicherung | B12: Mehr als 3h Verspätung beim Fliegen | C12: Innerhalb eines Jahres | D12: =F12/100000 -> 0.015 | F12: =0.015*100000 -> 1500 | G12: 1 | H12: 1 | I12: 1 | J12: 1 | K12: 1 | L12: 1 | M12: 1 | N12: 1 | O12: 1 | P12: 1 | Q12: 1 | R12: 1 | S12: 1 | T12: 1 | U12: 1 | V12: 1 | W12: 1 | X12: Fries, A. (2017, Juli 11). Täglich fallen 69 Flüge aus oder… | Y12: https://www.reisereporter.de/artikel/1947-flugausfaelle-flugverspaetung-taeglich-69-faelle-probleme-mit-fluegen | Z12: Niedrige Qualität der Daten (Niedrige externe Validität) | AA12: 2017 | AB12: Flüge | AC12: Werden beim Onlineeinkauf betrogen. | AD12: 25
A13: Recht | B13: Auto wird gestohlen | C13: Innerhalb eines Jahres | D13: =F13/100000 -> 0.00039 | F13: 39 | G13: 1 | H13: 1 | I13: 1 | J13: 1 | K13: 1 | L13: 1 | M13: 1 | N13: 1 | O13: 1 | P13: 1 | Q13: 1 | R13: 1 | S13: 1 | T13: 1 | U13: 1 | V13: 1 | W13: 1 | X13: gdv (2018). Statistisches Taschenbuch der Versicherungswirtschaft. | Y13: https://www.gdv.de/resource/blob/34962/935b53a18990cf9a613b6df765971d9f/download-statistisches-taschenbuch-2018-data.pdf | Z13: Moderate Qualität der Daten (Verzerrungsrisiko) | AA13: 2018 | AB13: Kraftfahrzeuge | AC13: Es wird erlebt digitalen Kreditkarten- bzw. Kontodatenbetrug. | AD13: 26
A14: Versicherung | B14: Hagel- / Sturmschaden am Auto | C14: Innerhalb eines Jahres | D14: =F14/100000 -> 0.00812 | F14: 812 | G14: 1 | H14: 1 | I14: 1 | J14: 1 | K14: 1 | L14: 1 | M14: 1 | N14: 1 | O14: 1 | P14: 1 | Q14: 1 | R14: 1 | S14: 1 | T14: 1 | U14: 1 | V14: 1 | W14: 1 | X14: gdv (2018). Statistisches Taschenbuch der Versicherungswirtschaft. | Y14: https://www.gdv.de/resource/blob/34962/935b53a18990cf9a613b6df765971d9f/download-statistisches-taschenbuch-2018-data.pdf | Z14: Moderate Qualität der Daten (Verzerrungsrisiko) | AA14: 2018 | AB14: Kraftfahrzeuge | AC14: Es wird erlebt, dass sich jemand zu Emails/sozialen Netzwerken Zugang verschafft. | AD14: 27
A15: Versicherung | B15: Wildunfall mit dem Auto | C15: Innerhalb eines Jahres | D15: =F15/100000 -> 0.00607 | F15: 607 | G15: 1 | H15: 1 | I15: 1 | J15: 1 | K15: 1 | L15: 1 | M15: 1 | N15: 1 | O15: 1 | P15: 1 | Q15: 1 | R15: 1 | S15: 1 | T15: 1 | U15: 1 | V15: 1 | W15: 1 | X15: gdv (2018). Statistisches Taschenbuch der Versicherungswirtschaft. | Y15: https://www.gdv.de/resource/blob/34962/935b53a18990cf9a613b6df765971d9f/download-statistisches-taschenbuch-2018-data.pdf | Z15: Moderate Qualität der Daten (Verzerrungsrisiko) | AA15: 2018 | AB15: Kraftfahrzeuge | AC15: Es wird erlebt, dass Zahlungsdaten vom Telefon kopiert werden. | AD15: 28
A16: Versicherung | B16: Marder beschädigt das Auto | C16: Innerhalb eines Jahres | D16: =F16/100000 -> 0.00472 | F16: 472 | G16: 1 | H16: 1 | I16: 1 | J16: 1 | K16: 1 | L16: 1 | M16: 1 | N16: 1 | O16: 1 | P16: 1 | Q16: 1 | R16: 1 | S16: 1 | T16: 1 | U16: 1 | V16: 1 | W16: 1 | X16: gdv (2018). Statistisches Taschenbuch der Versicherungswirtschaft. | Y16: https://www.gdv.de/resource/blob/34962/935b53a18990cf9a613b6df765971d9f/download-statistisches-taschenbuch-2018-data.pdf | Z16: Moderate Qualität der Daten (Verzerrungsrisiko) | AA16: 2018 | AB16: Kraftfahrzeuge | AC16: Es wird erlebt, dass Zahlungsdaten nach Onlineeinkauf missbraucht werden. | AD16: 29
A17: Versicherung | B17: Wohnungsbrand | C17: Innerhalb eines Jahres | D17: =F17/100000 -> 0.00254 | F17: 254 | G17: 1 | H17: 1 | I17: 1 | J17: 1 | K17: 1 | L17: 1 | M17: 1 | N17: 1 | O17: 1 | P17: 1 | Q17: 1 | R17: 1 | S17: 1 | T17: 1 | U17: 1 | V17: 1 | W17: 1 | X17: gdv (2018). Statistisches Taschenbuch der Versicherungswirtschaft. | Y17: https://www.gdv.de/resource/blob/34962/935b53a18990cf9a613b6df765971d9f/download-statistisches-taschenbuch-2018-data.pdf | Z17: Moderate Qualität der Daten (Verzerrungsrisiko) | AA17: 2018 | AB17: Versicherte | AC17: Es wird erlebt, dass der eigene Computer übernommen wird (ransomware). | AD17: 30
A18: Versicherung | B18: Leitungswasserschaden | C18: Innerhalb eines Jahres | D18: =F18/100000 -> 0.00205 | F18: 205 | G18: 1 | H18: 1 | I18: 1 | J18: 1 | K18: 1 | L18: 1 | M18: 1 | N18: 1 | O18: 1 | P18: 1 | Q18: 1 | R18: 1 | S18: 1 | T18: 1 | U18: 1 | V18: 1 | W18: 1 | X18: gdv (2018). Statistisches Taschenbuch der Versicherungswirtschaft. | Y18: https://www.gdv.de/resource/blob/34962/935b53a18990cf9a613b6df765971d9f/download-statistisches-taschenbuch-2018-data.pdf | Z18: Moderate Qualität der Daten (Verzerrungsrisiko) | AA18: 2018 | AB18: Versicherte | AC18: Opfer von digitalem Identitätsdiebstahl | AD18: 31
A19: Versicherung | B19: Leistungsfall der Rechtsschutzversicherung | C19: Innerhalb eines Jahres | D19: =F19/100000 -> 0.18523 | F19: 18523 | G19: 1 | H19: 1 | I19: 1 | J19: 1 | K19: 1 | L19: 1 | M19: 1 | N19: 1 | O19: 1 | P19: 1 | Q19: 1 | R19: 1 | S19: 1 | T19: 1 | U19: 1 | V19: 1 | W19: 1 | X19: gdv (2018). Statistisches Taschenbuch der Versicherungswirtschaft. | Y19: https://www.gdv.de/resource/blob/34962/935b53a18990cf9a613b6df765971d9f/download-statistisches-taschenbuch-2018-data.pdf | Z19: Moderate Qualität der Daten (Verzerrungsrisiko) | AA19: 2018 | AB19: Versicherungsverträge | AC19: Es wird erlebt unauthorisierten Zugriff auf einem Smarthome-Gerät | AD19: 33
A20: Versicherung | B20: Leistungsfall der Fahrzeugvollversicherung | C20: Innerhalb eines Jahres | D20: =F20/100000 -> 0.14703 | F20: 14703 | G20: 1 | H20: 1 | I20: 1 | J20: 1 | K20: 1 | L20: 1 | M20: 1 | N20: 1 | O20: 1 | P20: 1 | Q20: 1 | R20: 1 | S20: 1 | T20: 1 | U20: 1 | V20: 1 | W20: 1 | X20: gdv (2018). Statistisches Taschenbuch der Versicherungswirtschaft. | Y20: https://www.gdv.de/resource/blob/34962/935b53a18990cf9a613b6df765971d9f/download-statistisches-taschenbuch-2018-data.pdf | Z20: Moderate Qualität der Daten (Verzerrungsrisiko) | AA20: 2018 | AB20: Versicherungsverträge | AC20: Beruflich benachteiligt aufgrund von Texten unter dem eigenen Namen | AD20: 34
A21: Versicherung | B21: Leistungsfall der technischen Versicherung | C21: Innerhalb eines Jahres | D21: =F21/100000 -> 0.1344 | F21: 13440 | G21: 1 | H21: 1 | I21: 1 | J21: 1 | K21: 1 | L21: 1 | M21: 1 | N21: 1 | O21: 1 | P21: 1 | Q21: 1 | R21: 1 | S21: 1 | T21: 1 | U21: 1 | V21: 1 | W21: 1 | X21: gdv (2018). Statistisches Taschenbuch der Versicherungswirtschaft. | Y21: https://www.gdv.de/resource/blob/34962/935b53a18990cf9a613b6df765971d9f/download-statistisches-taschenbuch-2018-data.pdf | Z21: Moderate Qualität der Daten (Verzerrungsrisiko) | AA21: 2018 | AB21: Versicherungsverträge | AC21: Es wird erlebt analogen Kreditkarten- bzw. Kontodatenbetrug | AD21: 53
A22: Versicherung | B22: Leistungsfall der Wohngebäudeversicherung | C22: Innerhalb eines Jahres | D22: =F22/100000 -> 0.11846 | F22: 11846 | G22: 1 | H22: 1 | I22: 1 | J22: 1 | K22: 1 | L22: 1 | M22: 1 | N22: 1 | O22: 1 | P22: 1 | Q22: 1 | R22: 1 | S22: 1 | T22: 1 | U22: 1 | V22: 1 | W22: 1 | X22: gdv (2018). Statistisches Taschenbuch der Versicherungswirtschaft. | Y22: https://www.gdv.de/resource/blob/34962/935b53a18990cf9a613b6df765971d9f/download-statistisches-taschenbuch-2018-data.pdf | Z22: Moderate Qualität der Daten (Verzerrungsrisiko) | AA22: 2018 | AB22: Versicherungsverträge | AC22: Offline verbal angegriffen / schwer beleidigt worden | AD22: 49
A23: Versicherung | B23: Leistungsfall einer Kraftfahrversicherung | C23: Innerhalb eines Jahres | D23: =F23/100000 -> 0.08109 | F23: 8109 | G23: 1 | H23: 1 | I23: 1 | J23: 1 | K23: 1 | L23: 1 | M23: 1 | N23: 1 | O23: 1 | P23: 1 | Q23: 1 | R23: 1 | S23: 1 | T23: 1 | U23: 1 | V23: 1 | W23: 1 | X23: gdv (2018). Statistisches Taschenbuch der Versicherungswirtschaft. | Y23: https://www.gdv.de/resource/blob/34962/935b53a18990cf9a613b6df765971d9f/download-statistisches-taschenbuch-2018-data.pdf | Z23: Moderate Qualität der Daten (Verzerrungsrisiko) | AA23: 2018 | AB23: Versicherungsverträge | AC23: Offline sexuell belästig worden | AD23: 50
A24: Versicherung | B24: Leistungsfall einer Schadens-/Unfallversicherung | C24: Innerhalb eines Jahres | D24: =F24/100000 -> 0.07492 | F24: 7492 | G24: 1 | H24: 1 | I24: 1 | J24: 1 | K24: 1 | L24: 1 | M24: 1 | N24: 1 | O24: 1 | P24: 1 | Q24: 1 | R24: 1 | S24: 1 | T24: 1 | U24: 1 | V24: 1 | W24: 1 | X24: gdv (2018). Statistisches Taschenbuch der Versicherungswirtschaft. | Y24: https://www.gdv.de/resource/blob/34962/935b53a18990cf9a613b6df765971d9f/download-statistisches-taschenbuch-2018-data.pdf | Z24: Moderate Qualität der Daten (Verzerrungsrisiko) | AA24: 2018 | AB24: Versicherungsverträge | AC24: Hierzu wird gezählt, wenn Verbraucher erleben, dass sich Preise ständig ändern würden. | AD24: 43
A25: Versicherung | B25: Leistungsfall einer Sachversicherung | C25: Innerhalb eines Jahres | D25: =F25/100000 -> 0.07477 | F25: 7477 | G25: 1 | H25: 1 | I25: 1 | J25: 1 | K25: 1 | L25: 1 | M25: 1 | N25: 1 | O25: 1 | P25: 1 | Q25: 1 | R25: 1 | S25: 1 | T25: 1 | U25: 1 | V25: 1 | W25: 1 | X25: gdv (2018). Statistisches Taschenbuch der Versicherungswirtschaft. | Y25: https://www.gdv.de/resource/blob/34962/935b53a18990cf9a613b6df765971d9f/download-statistisches-taschenbuch-2018-data.pdf | Z25: Moderate Qualität der Daten (Verzerrungsrisiko) | AA25: 2018 | AB25: Versicherungsverträge | AC25: Hierzu wird gezählt, wenn Verbraucher erleben, dass sich Preise ständig ändern würden. | AD25: 44
A26: Versicherung | B26: Leistungsfall der privaten Sachversicherung | C26: Innerhalb eines Jahres | D26: =F26/100000 -> 0.06637 | F26: 6637 | G26: 1 | H26: 1 | I26: 1 | J26: 1 | K26: 1 | L26: 1 | M26: 1 | N26: 1 | O26: 1 | P26: 1 | Q26: 1 | R26: 1 | S26: 1 | T26: 1 | U26: 1 | V26: 1 | W26: 1 | X26: gdv (2018). Statistisches Taschenbuch der Versicherungswirtschaft. | Y26: https://www.gdv.de/resource/blob/34962/935b53a18990cf9a613b6df765971d9f/download-statistisches-taschenbuch-2018-data.pdf | Z26: Moderate Qualität der Daten (Verzerrungsrisiko) | AA26: 2018 | AB26: Versicherungsverträge | AC26: Hierbei werden Ihnen persönliche Daten gestohlen und es gibt sich jemand als Sie aus um dann Geschäfte zu tätigen oder Ihre Konten abzuräumen. | AD26: 63
A27: Versicherung | B27: Leistungsfall der Kraftfahrzeug-Haftpflichtversicherung | C27: Innerhalb eines Jahres | D27: =F27/100000 -> 0.06312 | F27: 6312 | G27: 1 | H27: 1 | I27: 1 | J27: 1 | K27: 1 | L27: 1 | M27: 1 | N27: 1 | O27: 1 | P27: 1 | Q27: 1 | R27: 1 | S27: 1 | T27: 1 | U27: 1 | V27: 1 | W27: 1 | X27: gdv (2018). Statistisches Taschenbuch der Versicherungswirtschaft. | Y27: https://www.gdv.de/resource/blob/34962/935b53a18990cf9a613b6df765971d9f/download-statistisches-taschenbuch-2018-data.pdf | Z27: Moderate Qualität der Daten (Verzerrungsrisiko) | AA27: 2018 | AB27: Versicherungsverträge | AC27: Hierbei erhalten Sie die Rechnungen für all jene Einkäufe, die Sie selbst nie getätigt haben, aber jemand, der Ihre persönliche Daten durch Identitätsdiebstahl erlangt hat. | AD27: 64
A28: Versicherung | B28: Leistungsfall der Fahrzeugteilversicherung | C28: Innerhalb eines Jahres | D28: =F28/100000 -> 0.0585 | F28: 5850 | G28: 1 | H28: 1 | I28: 1 | J28: 1 | K28: 1 | L28: 1 | M28: 1 | N28: 1 | O28: 1 | P28: 1 | Q28: 1 | R28: 1 | S28: 1 | T28: 1 | U28: 1 | V28: 1 | W28: 1 | X28: gdv (2018). Statistisches Taschenbuch der Versicherungswirtschaft. | Y28: https://www.gdv.de/resource/blob/34962/935b53a18990cf9a613b6df765971d9f/download-statistisches-taschenbuch-2018-data.pdf | Z28: Moderate Qualität der Daten (Verzerrungsrisiko) | AA28: 2018 | AB28: Versicherungsverträge | AC28: Die eigene Kreditwürdigkeit schränkt die möglichen Zahlungsweisen beim Onlineeinkauf ein, da der Händler nicht bei jedem Einkäufer das gleiche Risiko eingehen möchte. | AD28: 76
A29: Versicherung | B29: Leistungsfall der allgemeinen Haftpflichtversicherung | C29: Innerhalb eines Jahres | D29: =F29/100000 -> 0.05321 | F29: 5321 | G29: 1 | H29: 1 | I29: 1 | J29: 1 | K29: 1 | L29: 1 | M29: 1 | N29: 1 | O29: 1 | P29: 1 | Q29: 1 | R29: 1 | S29: 1 | T29: 1 | U29: 1 | V29: 1 | W29: 1 | X29: gdv (2018). Statistisches Taschenbuch der Versicherungswirtschaft. | Y29: https://www.gdv.de/resource/blob/34962/935b53a18990cf9a613b6df765971d9f/download-statistisches-taschenbuch-2018-data.pdf | Z29: Moderate Qualität der Daten (Verzerrungsrisiko) | AA29: 2018 | AB29: Versicherungsverträge | AC29: Hierbei erhält man eine Abmahnung von Rechtsanwälten, wenn durch einen Identitätsdiebstahl Geschäfte mit Ihrer Identität durchgeführt wurden, aber natürlich niemals bezahlt wurde. Somit landen die Rechnung und dann die Abmahnung bei Ihnen. | AD29: 65
A30: Versicherung | B30: Leistungsfall der Schutzbriefversicherung | C30: Innerhalb eines Jahres | D30: =F30/100000 -> 0.03892 | F30: 3892 | G30: 1 | H30: 1 | I30: 1 | J30: 1 | K30: 1 | L30: 1 | M30: 1 | N30: 1 | O30: 1 | P30: 1 | Q30: 1 | R30: 1 | S30: 1 | T30: 1 | U30: 1 | V30: 1 | W30: 1 | X30: gdv (2018). Statistisches Taschenbuch der Versicherungswirtschaft. | Y30: https://www.gdv.de/resource/blob/34962/935b53a18990cf9a613b6df765971d9f/download-statistisches-taschenbuch-2018-data.pdf | Z30: Moderate Qualität der Daten (Verzerrungsrisiko) | AA30: 2018 | AB30: Versicherungsverträge | AC30: Mehr als 3h Verspätung beim Fliegen. | AD30: 66
A31: Versicherung | B31: Leistungsfall der Hausratversicherung | C31: Innerhalb eines Jahres | D31: =F31/100000 -> 0.03753 | F31: 3753 | G31: 1 | H31: 1 | I31: 1 | J31: 1 | K31: 1 | L31: 1 | M31: 1 | N31: 1 | O31: 1 | P31: 1 | Q31: 1 | R31: 1 | S31: 1 | T31: 1 | U31: 1 | V31: 1 | W31: 1 | X31: gdv (2018). Statistisches Taschenbuch der Versicherungswirtschaft. | Y31: https://www.gdv.de/resource/blob/34962/935b53a18990cf9a613b6df765971d9f/download-statistisches-taschenbuch-2018-data.pdf | Z31: Moderate Qualität der Daten (Verzerrungsrisiko) | AA31: 2018 | AB31: Versicherungsverträge | AC31: Fluggepäck beschädigt/verloren. | AD31: 18
A32: Versicherung | B32: Leistungsfall der privaten Unfallversicherung | C32: Innerhalb eines Jahres | D32: =F32/100000 -> 0.03185 | F32: 3185 | G32: 1 | H32: 1 | I32: 1 | J32: 1 | K32: 1 | L32: 1 | M32: 1 | N32: 1 | O32: 1 | P32: 1 | Q32: 1 | R32: 1 | S32: 1 | T32: 1 | U32: 1 | V32: 1 | W32: 1 | X32: gdv (2018). Statistisches Taschenbuch der Versicherungswirtschaft. | Y32: https://www.gdv.de/resource/blob/34962/935b53a18990cf9a613b6df765971d9f/download-statistisches-taschenbuch-2018-data.pdf | Z32: Moderate Qualität der Daten (Verzerrungsrisiko) | AA32: 2018 | AB32: Versicherungsverträge | AC32: Verlust der Fahrerlaubnis. | AD32: 214
A33: Versicherung | B33: Leistungsfall der Kraftfahrtunfallversicherung | C33: Innerhalb eines Jahres | D33: =F33/100000 -> 0.00051 | F33: 51 | G33: 1 | H33: 1 | I33: 1 | J33: 1 | K33: 1 | L33: 1 | M33: 1 | N33: 1 | O33: 1 | P33: 1 | Q33: 1 | R33: 1 | S33: 1 | T33: 1 | U33: 1 | V33: 1 | W33: 1 | X33: gdv (2018). Statistisches Taschenbuch der Versicherungswirtschaft. | Y33: https://www.gdv.de/resource/blob/34962/935b53a18990cf9a613b6df765971d9f/download-statistisches-taschenbuch-2018-data.pdf | Z33: Moderate Qualität der Daten (Verzerrungsrisiko) | AA33: 2018 | AB33: Versicherungsverträge | AC33: Große Belastung durch Wohnkosten. | AD33: 59
A34: Gesundheit | B34: Bei Terroranschlag sterben | C34: Innerhalb eines Jahres | D34: =F34/100000 -> 2.9e-07 | F34: 0.029 | G34: 1 | H34: 1 | I34: 1 | J34: 1 | K34: 1 | L34: 1 | M34: 1 | N34: 1 | O34: 1 | P34: 1 | Q34: 1 | R34: 1 | S34: 1 | T34: 1 | U34: 1 | V34: 1 | W34: 1 | X34: Global Terrorism Database (2018). | Z34: Niedrige Qualität der Daten (Schwerwiegende Ereignisse zu unregelmäßig, um pro Jahr sinnvoll quantifiziert zu werden) | AA34: 2017 | AB34: Verbraucher | AC34: Miete oder Nebenkosten nicht leisten können. | AD34: 58
A35: Gesundheit | B35: Küchenschwamm zu selten austauschen | C35: Innerhalb eines Jahres | D35: =F35/100000 -> 0.39 | F35: 39000 | G35: 1 | H35: 1 | I35: 1 | J35: 1 | K35: 1 | L35: 1 | M35: 1 | N35: 1 | O35: 1 | P35: 1 | Q35: 1 | R35: 1 | S35: 1 | T35: 1 | U35: 1 | V35: 1 | W35: 1 | X35: Hölzl, C., & Aldrian, U., (2011). Lebensmittelsicherheit und Hygiene… | Y35: https://www.ages.at/fileadmin/AGES2015/Themen/Lebensmittel_Dateien/Lebensmittelsicherheit_und_Hygiene_im_Privathaushalt_13_12_2013.pdf | Z35: Sehr niedrige Qualität der Daten (Niedrige externe Validität) | AA35: 2013 | AB35: Verbraucher | AC35: Schulden bzw. Verbindlichkeiten zu haben, sagt nichts darüber aus, wie viel Vermögen oder Einnahmen dem gegenüber stehen. | AD35: 57
A36: Recht | B36: Verlust des Führerscheins | C36: Innerhalb eines Jahres | D36: =F36/100000 -> 0.01424 | F36: 1424 | G36: 1 | H36: 1 | I36: 1 | J36: 1 | K36: 1 | L36: 1 | M36: 1 | N36: 1 | O36: 1 | P36: 1 | Q36: 1 | R36: 1 | S36: 1 | T36: 1 | U36: 1 | V36: 1 | W36: 1 | X36: Kraftfahrt-Bundesamt (2018). Ausgewählte Maßnahmen… | Y36: https://www.kba.de/DE/Statistik/Kraftfahrer/Verkehrsauffaelligkeiten/Massnahmen_und_Sanktionen/2018_mus_dusl.html?nn=1150864 | Z36: Hohe Qualität der Daten | AA36: 2018 | AB36: Führerscheininhaber | AC36: Verluste mit Immobilien umfassen sämtliche Arten von Erwerbs- und Anlagegeschäften. | AD36: 2
A37: Gesundheit | B37: Durch Meteoriteneinschlag sterben | C37: Innerhalb eines Jahres | D37: =F37/100000 -> 6e-11 | F37: 6e-06 | G37: 1 | H37: 1 | I37: 1 | J37: 1 | K37: 1 | L37: 1 | M37: 1 | N37: 1 | O37: 1 | P37: 1 | Q37: 1 | R37: 1 | S37: 1 | T37: 1 | U37: 1 | V37: 1 | W37: 1 | X37: Krämer, W. (2011). Warum wir uns vor den falschen Dingen fürchten… | Z37: Niedrige Qualität der Daten (Schwerwiegende Ereignisse zu selten, um pro Jahr sinnvoll quantifiziert zu werden) | AA37: 1996 | AB37: Verbraucher | AC37: Totalverlust bei Crowdfunding (einschließlich Crowdlending und Crowdinvesting). | AD37: 68
A38: Gesundheit | B38: Bei einem Flugzeugunglück sterben | C38: Innerhalb eines Jahres | D38: =F38/100000 -> 1.5e-06 | F38: 0.15 | G38: 1 | H38: 1 | I38: 1 | J38: 1 | K38: 1 | L38: 1 | M38: 1 | N38: 1 | O38: 1 | P38: 1 | Q38: 1 | R38: 1 | S38: 1 | T38: 1 | U38: 1 | V38: 1 | W38: 1 | X38: Müller-Peters, H. & Gatzert, N. (2016). Todsicher: Die Wahrnehmung… | Z38: Niedrige Qualität der Daten (Aufgrund der Opfervielfalt in der Problemlage schwer zu quantifizieren, d.h. Passagiere aus Deutschland, Passagiere von Airlines aus Deutschland, Passagiere von Flugzeugen, die in Deutschland landen, starten oder darüberfliegen. | AA38: 2015 | AB38: Verbraucher | AC38: Keine Ausschüttung durch eine Energiegenossenschaft. | AD38: 301
A39: Gesundheit | B39: Vom Blitz getroffen werden | C39: Innerhalb eines Jahres | D39: =F39/100000 -> 1.23e-05 | F39: 1.23 | G39: 1 | H39: 1 | I39: 1 | J39: 1 | K39: 1 | L39: 1 | M39: 1 | N39: 1 | O39: 1 | P39: 1 | Q39: 1 | R39: 1 | S39: 1 | T39: 1 | U39: 1 | V39: 1 | W39: 1 | X39: Müller-Peters, H. & Gatzert, N. (2016). Todsicher: Die Wahrnehmung… | Z39: Niedrige Qualität der Daten (Ereignisse zu unregelmäßig, um pro Jahr sinnvoll quantifiziert zu werden) | AA39: 2015 | AB39: Verbraucher | AC39: Autoaufbruch | AD39: 208
A40: Gesundheit | B40: Von einem Hund gebissen werden | C40: Innerhalb eines Jahres | D40: =F40/100000 -> 0.0003 | F40: 30 | G40: 1 | H40: 1 | I40: 1 | J40: 1 | K40: 1 | L40: 1 | M40: 1 | N40: 1 | O40: 1 | P40: 1 | Q40: 1 | R40: 1 | S40: 1 | T40: 1 | U40: 1 | V40: 1 | W40: 1 | X40: Müller-Peters, H. & Gatzert, N. (2016). Todsicher: Die Wahrnehmung… | Z40: Niedrige Qualität der Daten (Keine systematische Erfassung) | AA40: 2015 | AB40: Verbraucher | AC40: Autodiebstahl | AD40: 209
A41: Gesundheit | B41: Durch einen Geisterfahrer zu Tode kommen | C41: Innerhalb eines Jahres | D41: =F41/100000 -> 2.5e-06 | F41: 0.25 | G41: 1 | H41: 1 | I41: 1 | J41: 1 | K41: 1 | L41: 1 | M41: 1 | N41: 1 | O41: 1 | P41: 1 | Q41: 1 | R41: 1 | S41: 1 | T41: 1 | U41: 1 | V41: 1 | W41: 1 | X41: Müller-Peters, H. & Gatzert, N. (2016). Todsicher: Die Wahrnehmung… | Z41: Niedrige Qualität der Daten (Keine systematische Erfassung) | AA41: 2015 | AB41: Verbraucher | AC41: Autopanne. | AD41: 213
A42: Gesundheit | B42: Tod durch Hornissen-, Wespen- oder Bienenstiche | C42: Innerhalb eines Jahres | D42: =F42/100000 -> 2.147674069e-10 | F42: =1/46562 -> 2.147674069e-05 | G42: 1 | H42: 1 | I42: 1 | J42: 1 | K42: 1 | L42: 1 | M42: 1 | N42: 1 | O42: 1 | P42: 1 | Q42: 1 | R42: 1 | S42: 1 | T42: 1 | U42: 1 | V42: 1 | W42: 1 | X42: National Safety Council (2017). Lifetime odds of death for selected… | Y42: https://injuryfacts.nsc.org/all-injuries/preventable-death-overview/odds-of-dying/. | Z42: Niedrige Qualität der Daten (US-Bevölkerungsdaten) | AA42: 2017 | AB42: Verbraucher | AC42: Auto-Hagel/Sturm-Schaden. | AD42: 210
A43: Gesundheit | B43: Tod durch einen Hundebiss | C43: Innerhalb eines Jahres | D43: =F43/100000 -> 8.687267073e-11 | F43: =1/115111 -> 8.687267073e-06 | G43: 1 | H43: 1 | I43: 1 | J43: 1 | K43: 1 | L43: 1 | M43: 1 | N43: 1 | O43: 1 | P43: 1 | Q43: 1 | R43: 1 | S43: 1 | T43: 1 | U43: 1 | V43: 1 | W43: 1 | X43: National Safety Council (2017). Lifetime odds of death for selected… | Y43: https://injuryfacts.nsc.org/all-injuries/preventable-death-overview/odds-of-dying/. | Z43: Niedrige Qualität der Daten (US-Bevölkerungsdaten) | AA43: 2017 | AB43: Verbraucher | AC43: Wildunfall. | AD43: 211
A44: Versicherung | B44: Konflikt mit Energieversorger bis zur Schlichtung | C44: Innerhalb eines Jahres | D44: =F44/100000 -> 0.0001223913043 | F44: =563/4600000*100000 -> 12.23913043 | G44: 1 | H44: 1 | I44: 1 | J44: 1 | K44: 1 | L44: 1 | M44: 1 | N44: 1 | O44: 1 | P44: 1 | Q44: 1 | R44: 1 | S44: 1 | T44: 1 | U44: 1 | V44: 1 | W44: 1 | X44: Schlichtungsstelle Energie e.V. (2018). Tätigkeitsbericht… | Y44: https://www.schlichtungsstelle-energie.de/presse.html?file=files/sse/content/pdf/presse/Taetigkeitsbericht%20SSE%202018.pdf | Z44: Niedrige Qualität der Daten (Sehr niedrige Validität) | AA44: 2018 | AB44: Stromanbieter-Wechsler | AC44: Maderbiss Auto. | AD44: 215
A45: Versicherung | B45: Fluggepäck beschädigt oder verloren | C45: Innerhalb eines Jahres | D45: =F45/100000 -> 0.00806 | F45: =0.00806*100000 -> 806 | G45: 1 | H45: 1 | I45: 1 | J45: 1 | K45: 1 | L45: 1 | M45: 1 | N45: 1 | O45: 1 | P45: 1 | Q45: 1 | R45: 1 | S45: 1 | T45: 1 | U45: 1 | V45: 1 | W45: 1 | X45: SITA (2017). The Baggage Report 2017. Air Transport Industry Insights. | Y45: http://comms.sita.aero/rs/089-ZSE-857/images/baggage-report-2017.pdf | Z45: Moderate Qualität der Daten (Verzerrungsrisiko) | AA45: 2016 | AB45: Flüge | AC45: Verkehrsunfall mit Sachschaden. | AD45: 212
A46: Gesundheit | B46: Problematisch/krankhaft in Casinos spielen | C46: Innerhalb eines Jahres | D46: =F46/100000 -> 0.126 | F46: =0.126*100000 -> 12600 | G46: 1 | H46: 1 | I46: 1 | J46: 1 | K46: 1 | L46: 1 | M46: 1 | N46: 1 | O46: 1 | P46: 1 | Q46: 1 | R46: 1 | S46: 1 | T46: 1 | U46: 1 | V46: 1 | W46: 1 | X46: Sperber, P. (2017). Zusammenfassung der BZgA Studie… | Y46: https://lssh.de/wp-content/uploads/2018/07/Zusammenfassung-der-BZgA-Studie-Glücksspielverhalten-und-Glücksspielsucht-in-Deutschland.-Ergebnisse-des-Surveys-2017-und-Trends.pdf | Z46: Niedrige Qualität der Daten (Dunkelziffer) | AA46: 2017 | AB46: Spieler | AC46: Glücksspiele unterm Strich ohne Gewinn. | AD46: 46
A47: Gesundheit | B47: Problematisch/krankhaft an Automaten spielen | C47: Innerhalb eines Jahres | D47: =F47/100000 -> 0.079 | F47: =0.079*100000 -> 7900 | G47: 1 | H47: 1 | I47: 1 | J47: 1 | K47: 1 | L47: 1 | M47: 1 | N47: 1 | O47: 1 | P47: 1 | Q47: 1 | R47: 1 | S47: 1 | T47: 1 | U47: 1 | V47: 1 | W47: 1 | X47: Sperber, P. (2017). Zusammenfassung der BZgA Studie… | Y47: https://lssh.de/wp-content/uploads/2018/07/Zusammenfassung-der-BZgA-Studie-Glücksspielverhalten-und-Glücksspielsucht-in-Deutschland.-Ergebnisse-des-Surveys-2017-und-Trends.pdf | Z47: Niedrige Qualität der Daten (Dunkelziffer) | AA47: 2017 | AB47: Spieler | AC47: In Spielbanken problematisch/krankhaft spielen. | AD47: 103
A48: Gesundheit | B48: Problematisch/krankhaft im Sport wetten | C48: Innerhalb eines Jahres | D48: =F48/100000 -> 0.037 | F48: =0.037*100000 -> 3700 | G48: 1 | H48: 1 | I48: 1 | J48: 1 | K48: 1 | L48: 1 | M48: 1 | N48: 1 | O48: 1 | P48: 1 | Q48: 1 | R48: 1 | S48: 1 | T48: 1 | U48: 1 | V48: 1 | W48: 1 | X48: Sperber, P. (2017). Zusammenfassung der BZgA Studie… | Y48: https://lssh.de/wp-content/uploads/2018/07/Zusammenfassung-der-BZgA-Studie-Glücksspielverhalten-und-Glücksspielsucht-in-Deutschland.-Ergebnisse-des-Surveys-2017-und-Trends.pdf | Z48: Niedrige Qualität der Daten (Dunkelziffer) | AA48: 2017 | AB48: Spieler | AC48: An Geldspielautomaten problematisch/krankhaft spielen. | AD48: 104
A49: Gesundheit | B49: Problematisch/krankhaft 6 aus 49 spielen | C49: Innerhalb eines Jahres | D49: =F49/100000 -> 0.02 | F49: =0.02*100000 -> 2000 | G49: 1 | H49: 1 | I49: 1 | J49: 1 | K49: 1 | L49: 1 | M49: 1 | N49: 1 | O49: 1 | P49: 1 | Q49: 1 | R49: 1 | S49: 1 | T49: 1 | U49: 1 | V49: 1 | W49: 1 | X49: Sperber, P. (2017). Zusammenfassung der BZgA Studie… | Y49: https://lssh.de/wp-content/uploads/2018/07/Zusammenfassung-der-BZgA-Studie-Glücksspielverhalten-und-Glücksspielsucht-in-Deutschland.-Ergebnisse-des-Surveys-2017-und-Trends.pdf | Z49: Niedrige Qualität der Daten (Dunkelziffer) | AA49: 2017 | AB49: Spieler | AC49: Online-Sportwetten problematisch/krankhaft spielen. | AD49: 106
A50: Gesundheit | B50: Problematisch/krankhaft Eurojackpot spielen | C50: Innerhalb eines Jahres | D50: =F50/100000 -> 0.011 | F50: =0.011*100000 -> 1100 | G50: 1 | H50: 1 | I50: 1 | J50: 1 | K50: 1 | L50: 1 | M50: 1 | N50: 1 | O50: 1 | P50: 1 | Q50: 1 | R50: 1 | S50: 1 | T50: 1 | U50: 1 | V50: 1 | W50: 1 | X50: Sperber, P. (2017). Zusammenfassung der BZgA Studie… | Y50: https://lssh.de/wp-content/uploads/2018/07/Zusammenfassung-der-BZgA-Studie-Glücksspielverhalten-und-Glücksspielsucht-in-Deutschland.-Ergebnisse-des-Surveys-2017-und-Trends.pdf | Z50: Niedrige Qualität der Daten (Dunkelziffer) | AA50: 2017 | AB50: Spieler | AC50: 6 aus 49 problematisch/krankhaft spielen. | AD50: 107
A51: Gesundheit | B51: Süchtig nach Glücksspiel | C51: Innerhalb eines Jahres | D51: =F51/100000 -> 0.0031 | F51: 310 | G51: 1 | H51: 1 | I51: 1 | J51: 1 | K51: 1 | L51: 1 | M51: 1 | N51: 1 | O51: 1 | P51: 1 | Q51: 1 | R51: 1 | S51: 1 | T51: 1 | U51: 1 | V51: 1 | W51: 1 | X51: Sperber, P. (2017). Zusammenfassung der BZgA Studie… | Y51: https://lssh.de/wp-content/uploads/2018/07/Zusammenfassung-der-BZgA-Studie-Glücksspielverhalten-und-Glücksspielsucht-in-Deutschland.-Ergebnisse-des-Surveys-2017-und-Trends.pdf | Z51: Moderate Qualität der Daten (Dunkelziffer) | AA51: 2017 | AB51: Verbraucher | AC51: Eurojackpot problematisch/krankhaft spielen. | AD51: 108
A52: Finanzen | B52: Staatliche soziale Unterstützungsleistungen erhalten | C52: Innerhalb eines Jahres | D52: =F52/100000 -> 0.095 | F52: 9500 | G52: 1 | H52: 1 | I52: 1 | J52: 1 | K52: 1 | L52: 1 | M52: 1 | N52: 1 | O52: 1 | P52: 1 | Q52: 1 | R52: 1 | S52: 1 | T52: 1 | U52: 1 | V52: 1 | W52: 1 | X52: Statisches Bundesamt (2017). Wirtschaftsrechnungen | Y52: https://www.destatis.de/DE/Themen/Gesellschaft-Umwelt/Einkommen-Konsum-Lebensbedingungen/Lebensbedingungen-Armutsgefaehrdung/Publikationen/Downloads-Lebensbedingungen/einkommen-lebensbedingungen-2150300177004.pdf | Z52: Moderate Qualität der Daten (Individuell stark beinflussbar) | AA52: 2017 | AB52: Verbraucher | AC52: Schlichtungsantrag im Konfliktfall mit dem eigenen Energieversorger. | AD52: 67
A53: Finanzen | B53: Grundsicherung erhalten | C53: Innerhalb eines Jahres | D53: =F53/100000 -> 0.0132278481 | F53: =1.1/(7.9/0.095)*100*1000 -> 1322.78481 | G53: 1 | H53: 1 | I53: 1 | J53: 1 | K53: 1 | L53: 1 | M53: 1 | N53: 1 | O53: 1 | P53: 1 | Q53: 1 | R53: 1 | S53: 1 | T53: 1 | U53: 1 | V53: 1 | W53: 1 | X53: Statisches Bundesamt (2017). Wirtschaftsrechnungen | Y53: https://www.destatis.de/DE/Themen/Gesellschaft-Umwelt/Einkommen-Konsum-Lebensbedingungen/Lebensbedingungen-Armutsgefaehrdung/Publikationen/Downloads-Lebensbedingungen/einkommen-lebensbedingungen-2150300177004.pdf | Z53: Moderate Qualität der Daten (Individuell stark beinflussbar) | AA53: 2017 | AB53: Verbraucher | AC53: Opfer von Betrug/Untreue bei Kapitalanlage. | AD53: 3
A54: Versicherung | B54: Verkehrsunfall mit Sachschaden | C54: Innerhalb eines Jahres | D54: =F54/100000 -> 0.05064 | F54: 5064 | G54: 1 | H54: 1 | I54: 1 | J54: 1 | K54: 1 | L54: 1 | M54: 1 | N54: 1 | O54: 1 | P54: 1 | Q54: 1 | R54: 1 | S54: 1 | T54: 1 | U54: 1 | V54: 1 | W54: 1 | X54: Statistisches Bundesamt (2018). | Y54: https://www.destatis.de | Z54: Hohe Qualität der Daten | AA54: 2018 | AB54: Kraftfahrzeuge | AC54: Überschuldet. | AD54: 55
A55: Recht | B55: Ziviler Rechtsstreit | C55: Innerhalb eines Jahres | D55: =F55/100000 -> 0.03013 | F55: 3013 | G55: 1 | H55: 1 | I55: 1 | J55: 1 | K55: 1 | L55: 1 | M55: 1 | N55: 1 | O55: 1 | P55: 1 | Q55: 1 | R55: 1 | S55: 1 | T55: 1 | U55: 1 | V55: 1 | W55: 1 | X55: Statistisches Bundesamt (2018). | Y55: https://www.destatis.de | Z55: Hohe Qualität der Daten | AA55: 2018 | AB55: Verbraucher | AC55: Verbraucherinsolvenz. | AD55: 36
A56: Recht | B56: Scheidung | C56: Innerhalb eines Jahres | D56: =F56/100000 -> 0.0084 | F56: 840 | G56: 1 | H56: 1 | I56: 1 | J56: 1 | K56: 1 | L56: 1 | M56: 1 | N56: 1 | O56: 1 | P56: 1 | Q56: 1 | R56: 1 | S56: 1 | T56: 1 | U56: 1 | V56: 1 | W56: 1 | X56: Statistisches Bundesamt (2019). | Y56: https://www.destatis.de | Z56: Hohe Qualität der Daten | AA56: 2019 | AB56: Verbraucher | AC56: Es wird erlebt EC-Kartendiebstahl mit Betrug (Debitkarten). | AD56: 60
A57: Gesundheit | B57: Tod durch Leberkrebs nach 40 Löffeln Erdnussbutter | C57: Innerhalb eines Jahres | D57: =F57/100000 -> 1e-06 | F57: 0.1 | G57: 1 | H57: 1 | I57: 1 | J57: 1 | K57: 1 | L57: 1 | M57: 1 | N57: 1 | O57: 1 | P57: 1 | Q57: 1 | R57: 1 | S57: 1 | T57: 1 | U57: 1 | V57: 1 | W57: 1 | X57: Wilson, R. (1979). Analyzing the daily risks of life. Tech Rev, 81(4), 41-46. | Z57: Niedrige Qualität der Daten (Alter der Daten) | AA57: 1979 | AB57: Verbraucher | AC57: Kreditkartenschulden sagen nichts darüber aus, wie viel Vermögen dem gegenüber steht. | AD57: 61
A58: Finanzen | B58: Opfer von Betrug bzw. Untreue bei Kapitalanlage | C58: Innerhalb eines Jahres | D58: =F58/100000 -> 0.0001668550725 | F58: =11513/69000000*100000 -> 16.68550725 | G58: 1 | H58: 1 | L58: 1 | M58: 1 | N58: 1 | O58: 1 | P58: 1 | Q58: 1 | R58: 1 | S58: 1 | T58: 1 | U58: 1 | V58: 1 | W58: 1 | X58: BKA (2018). Bundeslagebild Wirtschaftskriminalität 2017. | Y58: https://www.bka.de/SharedDocs/Downloads/DE/Publikationen/JahresberichteUndLagebilder/Wirtschaftskriminalitaet/wirtschaftskriminalitaetBundeslagebild2017.pdf | Z58: Hohe Qualität der Daten | AA58: 2017 | AB58: Verbraucher | AC58: Kreditwürdigkeit wird von der Schufa mithilfe der Adresse ermittelt, wenn sonst kein anderes Datum zur Verfügung steht. | AD58: 77
A59: Finanzen | B59: Überschuldet | C59: Innerhalb eines Jahres | D59: =F59/100000 -> 0.1004 | F59: 10040 | G59: 1 | H59: 1 | L59: 1 | M59: 1 | N59: 1 | O59: 1 | P59: 1 | Q59: 1 | R59: 1 | S59: 1 | T59: 1 | U59: 1 | V59: 1 | W59: 1 | X59: Creditreform.de (2018). Analyse SchuldnerAtlas Deutschland… | Y59: https://www.creditreform.de/fileadmin/user_upload/central_files/News/News_Wirtschaftsforschung/2018/Analyse-SchuldnerAtlas-Deutschland-2018.pdf | Z59: Niedrige Qualität der Daten (Individuell stark beinflussbar) | AA59: 2018 | AB59: Verbraucher | AC59: Bestreiten Lebensunterhalt durch eigene Kapitaleinnahmen. | AD59: 56
A60: Finanzen | B60: Insolvent als Verbraucher | C60: Innerhalb eines Jahres | D60: =F60/100000 -> 0.001289782609 | F60: =88995/69000000*100000 -> 128.9782609 | G60: 1 | H60: 1 | L60: 1 | M60: 1 | N60: 1 | O60: 1 | P60: 1 | Q60: 1 | R60: 1 | S60: 1 | T60: 1 | U60: 1 | V60: 1 | W60: 1 | X60: CRIF Bürgel GmbH. (21. März, 2019). Anzahl der Privatinsolvenzen… | Y60: https://de-statista-com.ezproxy.mpib-berlin.mpg.de/statistik/daten/studie/150565/umfrage/privatinsolvenzen-in-deutschland-seit-2000/ | Z60: Hohe Qualität der Daten | AA60: 2017 | AB60: Verbraucher | AC60: Erhalten staatliche soziale Unterstützungsleistungen. | AD60: 41
A61: Finanzen | B61: EC-Kartendiebstahl mit Betrug erlebn | C61: Innerhalb eines Jahres | D61: =F61/100000 -> 0.0001500434783 | F61: =10353/69000000*100000 -> 15.00434783 | G61: 1 | H61: 1 | L61: 1 | M61: 1 | N61: 1 | O61: 1 | P61: 1 | Q61: 1 | R61: 1 | S61: 1 | T61: 1 | U61: 1 | V61: 1 | W61: 1 | X61: FOCUS Online Group GmbH (2018, Januar 14). Wieder mehr Betrug… | Y61: https://www.focus.de/finanzen/news/2-2-millionen-euro-schaden-wieder-mehr-betrug-mit-bankkarten-branche-ohne-sorge_id_8294582.html | Z61: Moderate Qualität der Daten (Individuell stark beinflussbar) | AA61: 2017 | AB61: Verbraucher | AC61: Grundsicherung erhalten. | AD61: 42
A62: Finanzen | B62: Unterm Strich Verluste beim Glücksspiel | C62: Innerhalb eines Jahres | D62: =F62/100000 -> 0.9 | F62: 90000 | G62: 1 | H62: 1 | L62: 1 | M62: 1 | N62: 1 | O62: 1 | P62: 1 | Q62: 1 | R62: 1 | S62: 1 | T62: 1 | U62: 1 | V62: 1 | W62: 1 | X62: Haß, W., & Lang, P. (2016). Glücksspielverhalten und … | Z62: Sehr niedrige Qualität der Daten (Alter der Daten) | AA62: 2015 | AB62: Spieler | AC62: Verletzung durch Autounfall. | AD62: 202
A63: Finanzen | B63: Totalverlust bei Crowdfunding | C63: Innerhalb eines Jahres | D63: =F63/100000 -> 0.15 | F63: 15000 | G63: 1 | H63: 1 | L63: 1 | M63: 1 | N63: 1 | O63: 1 | P63: 1 | Q63: 1 | R63: 1 | S63: 1 | T63: 1 | U63: 1 | V63: 1 | W63: 1 | X63: Horhuf, L., & Schmitt, M., (2016). Success and Failure in equity crowd… | Y63: https://www.uni-trier.de/fileadmin/fb4/prof/VWL/OAR/Hornuf_Schmitt_-_Success_and_Failure_in_Equity_Crowdfunding.pdf | Z63: Sehr niedrige Qualität der Daten (Alter der Daten) | AA63: 2015 | AB63: Investoren | AC63: Tödlicher Autounfall. | AD63: 203
A64: Finanzen | B64: Kreditkartenschulden | C64: Innerhalb eines Jahres | D64: =F64/100000 -> 0.07 | F64: 7000 | G64: 1 | H64: 1 | L64: 1 | M64: 1 | N64: 1 | O64: 1 | P64: 1 | Q64: 1 | R64: 1 | S64: 1 | T64: 1 | U64: 1 | V64: 1 | W64: 1 | X64: ING DiBa. (2015). Kredit- und Dispo-Nutzung in Deutschland... | Y64: https://www.ing.de/binaries/content/assets/pdf/ueber-uns/presse/publikationen/ing-diba-economic-analysis-umfrageergebnisse-dispo-nutzung-2015.pdf | Z64: Sehr niedrige Qualität der Daten (Alter der Daten; potenzieller Interessenkonflikt) | AA64: 2014 | AB64: Verbraucher | AC64: Tödlicher Fußgängerunfall. | AD64: 204
A65: Finanzen | B65: Kreditwürdigkeit durch Wohnort bestimmt | C65: Innerhalb eines Jahres | D65: =F65/100000 -> 0.003 | F65: 300 | G65: 1 | H65: 1 | L65: 1 | M65: 1 | N65: 1 | O65: 1 | P65: 1 | Q65: 1 | R65: 1 | S65: 1 | T65: 1 | U65: 1 | V65: 1 | W65: 1 | X65: Schufa (2018). SCHUFA Kredit-Kompass 2018. | Y65: https://www.schufa.de/media/editorial/ueber_uns/bilder/studien_und_publikationen/kredit_kompass/skk_2018/SCHUFA_Kredit-Kompass-2018.pdf | Z65: Niedrige Qualität der Daten (Verzerrungsrisiko) | AA65: 2017 | AB65: Verbraucher | AC65: Erkrankungen durch Mikroorganismen in Lebensmitteln. | AD65: 48
A66: Finanzen | B66: Lebensunterhalt durch eigene Kapitaleinnahmen | C66: Innerhalb eines Jahres | D66: =F66/100000 -> 0.008 | F66: 800 | G66: 1 | H66: 1 | L66: 1 | M66: 1 | N66: 1 | O66: 1 | P66: 1 | Q66: 1 | R66: 1 | S66: 1 | T66: 1 | U66: 1 | V66: 1 | W66: 1 | X66: Statistisches Bundesamt (2016). 70 % der 18- bis 64-Jährigen… | Y66: https://www.destatis.de/DE/PresseService/Presse/Pressemitteilungen/2016/07/PD16_243_122.html | Z66: Moderate Qualität der Daten (Aufzeichnung ist nur bedingt zuverlässig möglich) | AA66: 2015 | AB66: Verbraucher | AC66: Tödlicher Terroranschlag. | AD66: 225
A67: Finanzen | B67: Große Belastung durch Wohnkosten | C67: Innerhalb eines Jahres | D67: =F67/100000 -> 0.133 | F67: 13300 | G67: 1 | H67: 1 | L67: 1 | M67: 1 | N67: 1 | O67: 1 | P67: 1 | Q67: 1 | R67: 1 | S67: 1 | T67: 1 | U67: 1 | V67: 1 | W67: 1 | X67: Statistisches Bundesamt (2017). Wirtschaftsrechnungen. | Y67: https://www.destatis.de/DE/Themen/Gesellschaft-Umwelt/Einkommen-Konsum-Lebensbedingungen/Lebensbedingungen-Armutsgefaehrdung/Publikationen/Downloads-Lebensbedingungen/einkommen-lebensbedingungen-2150300177004.pdf | Z67: Moderate Qualität der Daten (Dunkelziffer) | AA67: 2017 | AB67: Haushalte | AC67: Tauschen Küchenschwamm zu selten aus. | AD67: 45
A68: Finanzen | B68: Miete oder Nebenkosten nicht leisten können | C68: Innerhalb eines Jahres | D68: =F68/100000 -> 0.044 | F68: 4400 | G68: 1 | H68: 1 | L68: 1 | M68: 1 | N68: 1 | O68: 1 | P68: 1 | Q68: 1 | R68: 1 | S68: 1 | T68: 1 | U68: 1 | V68: 1 | W68: 1 | X68: Statistisches Bundesamt (2017). Wirtschaftsrechnungen. | Y68: https://www.destatis.de/DE/Themen/Gesellschaft-Umwelt/Einkommen-Konsum-Lebensbedingungen/Lebensbedingungen-Armutsgefaehrdung/Publikationen/Downloads-Lebensbedingungen/einkommen-lebensbedingungen-2150300177004.pdf | Z68: Moderate Qualität der Daten (Dunkelziffer) | AA68: 2017 | AB68: Haushalte | AC68: Tod durch Meteoriteneinschlag. | AD68: 71
A69: Finanzen | B69: Schulden haben | C69: Innerhalb eines Jahres | D69: =F69/100000 -> 0.4774854665 | F69: =19.384/40.596*100000 -> 47748.54665 | G69: 1 | H69: 1 | L69: 1 | M69: 1 | N69: 1 | O69: 1 | P69: 1 | Q69: 1 | R69: 1 | S69: 1 | T69: 1 | U69: 1 | V69: 1 | W69: 1 | X69: Statistisches Bundesamt (2018). Wirtschaftsrechnungen. | Y69: https://www.destatis.de/DE/Themen/Gesellschaft-Umwelt/Einkommen-Konsum-Lebensbedingungen/Vermoegen-Schulden/Publikationen/Downloads-Vermoegen-Schulden/evs-geld-immobilienvermoegen-schulden-2152602189004.pdf | Z69: Hohe Qualität der Daten | AA69: 2018 | AB69: Haushalte | AC69: Hundebiss. | AD69: 228
A70: Finanzen | B70: Keine Ausschüttung durch eine Energiegenossenschaft | C70: Innerhalb eines Jahres | D70: =F70/100000 -> 0.32 | F70: 32000 | G70: 1 | H70: 1 | L70: 1 | M70: 1 | N70: 1 | O70: 1 | P70: 1 | Q70: 1 | R70: 1 | S70: 1 | T70: 1 | U70: 1 | V70: 1 | W70: 1 | X70: Verbraucherzentrale (2017). Energiegenossenschaften… | Y70: https://www.geld-bewegt.de/wissen/geld-versicherungen/nachhaltige-geldanlage/energiegenossenschaften-gemeinsam-investieren-11295 | Z70: Niedrige Qualität der Daten (Alter der Daten; Verzerrungsrisiko) | AA70: 2016 | AB70: Investoren | AC70: Verletzung oder Tod durch Blitz. | AD70: 227
A71: Recht | B71: Opfer von Stalking | C71: Innerhalb eines Jahres | D71: =F71/100000 -> 0.0002449501645 | F71: 24.49501645 | G71: 0.38 | H71: 1.6 | I71: 0.14 | J71: 0.08 | K71: 0.19 | L71: 1.05 | M71: 0.19 | N71: 1.97 | O71: 2.27 | P71: 0.48 | Q71: 4.26 | R71: 1.54 | S71: 0.56 | T71: 2.56 | U71: 0.22 | V71: 0.18 | W71: 0.25 | X71: BMI (2018). Polizeiliche Kriminalstatistik (PKS) 2018. | Y71: https://www.bka.de/DE/AktuelleInformationen/StatistikenLagebilder/PolizeilicheKriminalstatistik/PKS2018/pks2018_node.html | Z71: Moderate Qualität der Daten (Dunkelziffer) | AA71: 2018 | AB71: Verbraucher | AC71: Tödlicher Geisterfahrerunfall. | AD71: 207
B72: Was kann im nächsten Jahr passieren? | D72: 1 | F72: 100000 | G72: 1.05 | H72: 0.97 | I72: 0.98 | J72: 0.98 | K72: 0.98 | L72: 1.1 | M72: 1 | N72: 1.02 | O72: 1.03 | P72: 1.03 | Q72: 1.1 | R72: 1.03 | S72: 1.1 | T72: 1.02 | U72: 1.03 | V72: 0.99 | W72: 1.01 | AB72: Verbraucher | AC72: Tödlicher Flugzeugunfall. | AD72: 205
A73: Recht | B73: Opfer eines Raubüberfalls auf eigene Wohnung | C73: Innerhalb eines Jahres | D73: =F73/100000 -> 3.244261055e-05 | F73: 3.244261055 | G73: 1.27 | H73: 0.73 | I73: 0.15 | J73: 0.16 | K73: 0.14 | L73: 1.12 | M73: 1.57 | N73: 0.64 | O73: 2.66 | P73: 3.89 | Q73: 1.29 | R73: 1.21 | S73: 1.55 | T73: 0.86 | U73: 0.79 | V73: 0.87 | W73: 0.72 | X73: BMI (2018). Polizeiliche Kriminalstatistik (PKS) 2018. | Y73: https://www.bka.de/DE/AktuelleInformationen/StatistikenLagebilder/PolizeilicheKriminalstatistik/PKS2018/pks2018_node.html | Z73: Moderate Qualität der Daten (Dunkelziffer) | AA73: 2018 | AB73: Verbraucher | AC73: Tod durch Hornissen-, Wespen- oder Bienenstiche. | AD73: 202
A74: Recht | B74: Durch einen anderen getötet werden | C74: Innerhalb eines Jahres | D74: =F74/100000 -> 3.737060203e-05 | F74: 3.737060203 | G74: 1.32 | H74: 0.69 | I74: 0.41 | J74: 0.46 | K74: 0.36 | L74: 1.15 | M74: 1.01 | N74: 1.3 | O74: 2.47 | P74: 2.85 | Q74: 2.04 | R74: 1.33 | S74: 1.84 | T74: 0.79 | U74: 0.46 | V74: 0.49 | W74: 0.44 | X74: BMI (2018). Polizeiliche Kriminalstatistik (PKS) 2018. | Y74: https://www.bka.de/DE/AktuelleInformationen/StatistikenLagebilder/PolizeilicheKriminalstatistik/PKS2018/pks2018_node.html | Z74: Moderate Qualität der Daten (Dunkelziffer) | AA74: 2018 | AB74: Verbraucher | AC74: Tod durch Hundebisse. | AD74: 72
A75: Recht | B75: Mordopfer | C75: Innerhalb eines Jahres | D75: =F75/100000 -> 1.530334608e-05 | F75: 1.530334608 | G75: 1.08 | H75: 0.93 | I75: 0.51 | J75: 0.52 | K75: 0.5 | L75: 1.43 | M75: 0.53 | N75: 2.39 | O75: 2.33 | P75: 1.41 | Q75: 3.36 | R75: 1.25 | S75: 1.46 | T75: 1.04 | U75: 0.53 | V75: 0.58 | W75: 0.49 | X75: BMI (2018). Polizeiliche Kriminalstatistik (PKS) 2018. | Y75: https://www.bka.de/DE/AktuelleInformationen/StatistikenLagebilder/PolizeilicheKriminalstatistik/PKS2018/pks2018_node.html | Z75: Moderate Qualität der Daten (Dunkelziffer) | AA75: 2018 | AB75: Verbraucher | AC75: Süchtig nach Glücksspiel. | AD75: 38
A76: Recht | B76: Opfer fahrlässiger Körperverletzung | C76: Innerhalb eines Jahres | D76: =F76/100000 -> 0.0003079149184 | F76: 30.79149184 | G76: 1.04 | H76: 0.96 | I76: 1.15 | J76: 1.21 | K76: 1.09 | L76: 1.51 | M76: 1.37 | N76: 1.66 | O76: 1.43 | P76: 1.3 | Q76: 1.58 | R76: 1.1 | S76: 1.13 | T76: 1.05 | U76: 0.63 | V76: 0.67 | W76: 0.6 | X76: BMI (2018). Polizeiliche Kriminalstatistik (PKS) 2018. | Y76: https://www.bka.de/DE/AktuelleInformationen/StatistikenLagebilder/PolizeilicheKriminalstatistik/PKS2018/pks2018_node.html | Z76: Moderate Qualität der Daten (Dunkelziffer) | AA76: 2018 | AB76: Verbraucher | AC76: Tod durch Leberkrebs aufgrund von 40 Löffeln Erdnussbuttern. | AD76: 100
A77: Recht | B77: Bedroht werden | C77: Innerhalb eines Jahres | D77: =F77/100000 -> 0.001482624886 | F77: 148.2624886 | G77: 1.14 | H77: 0.87 | I77: 0.38 | J77: 0.42 | K77: 0.33 | L77: 1.81 | M77: 1.98 | N77: 1.63 | O77: 2.07 | P77: 2.25 | Q77: 1.86 | R77: 1.4 | S77: 1.53 | T77: 1.27 | U77: 0.29 | V77: 0.39 | W77: 0.22 | X77: BMI (2018). Polizeiliche Kriminalstatistik (PKS) 2018. | Y77: https://www.bka.de/DE/AktuelleInformationen/StatistikenLagebilder/PolizeilicheKriminalstatistik/PKS2018/pks2018_node.html | Z77: Moderate Qualität der Daten (Dunkelziffer) | AA77: 2018 | AB77: Verbraucher | AC77: Handtaschenraub (versucht und vollendet). | AD77: 405
A78: Recht | B78: Opfer einer Straftat | C78: Innerhalb eines Jahres | D78: =F78/100000 -> 0.01238328164 | F78: 1238.328164 | G78: 1.21 | H78: 0.8 | I78: 0.55 | J78: 0.58 | K78: 0.52 | L78: 2.18 | M78: 2.39 | N78: 1.96 | O78: 2.75 | P78: 3.24 | Q78: 2.21 | R78: 1.33 | S78: 1.58 | T78: 1.07 | U78: 0.23 | V78: 0.29 | W78: 0.17 | X78: BMI (2018). Polizeiliche Kriminalstatistik (PKS) 2018. | Y78: https://www.bka.de/DE/AktuelleInformationen/StatistikenLagebilder/PolizeilicheKriminalstatistik/PKS2018/pks2018_node.html | Z78: Moderate Qualität der Daten (Dunkelziffer) | AA78: 2018 | AB78: Verbraucher | AC78: Nachstellung (Stalking) § 238 StGB (versucht und vollendet). | AD78: 412
A79: Recht | B79: Opfer leichter Körperverletzung | C79: Innerhalb eines Jahres | D79: =F79/100000 -> 0.005141586087 | F79: 514.1586087 | G79: 1.2 | H79: 0.81 | I79: 0.48 | J79: 0.62 | K79: 0.33 | L79: 2.35 | M79: 2.81 | N79: 1.85 | O79: 3.07 | P79: 3.75 | Q79: 2.32 | R79: 1.32 | S79: 1.49 | T79: 1.14 | U79: 0.22 | V79: 0.28 | W79: 0.16 | X79: BMI (2018). Polizeiliche Kriminalstatistik (PKS) 2018. | Y79: https://www.bka.de/DE/AktuelleInformationen/StatistikenLagebilder/PolizeilicheKriminalstatistik/PKS2018/pks2018_node.html | Z79: Moderate Qualität der Daten (Dunkelziffer) | AA79: 2018 | AB79: Verbraucher | AC79: Raubüberfälle in Wohnungen (versucht und vollendet). | AD79: 407
A80: Recht | B80: Opfer von Gewaltkriminalität | C80: Innerhalb eines Jahres | D80: =F80/100000 -> 0.002694922868 | F80: 269.4922868 | G80: 1.42 | H80: 0.59 | I80: 0.37 | J80: 0.49 | K80: 0.25 | L80: 2.73 | M80: 3.59 | N80: 1.81 | O80: 3.72 | P80: 5.29 | Q80: 1.98 | R80: 1.29 | S80: 1.8 | T80: 0.76 | U80: 0.19 | V80: 0.25 | W80: 0.14 | X80: BMI (2018). Polizeiliche Kriminalstatistik (PKS) 2018. | Y80: https://www.bka.de/DE/AktuelleInformationen/StatistikenLagebilder/PolizeilicheKriminalstatistik/PKS2018/pks2018_node.html | Z80: Moderate Qualität der Daten (Dunkelziffer) | AA80: 2018 | AB80: Verbraucher | AC80: Totschlag § 212 StGB (versucht und vollendet). | AD80: 403
A81: Recht | B81: Opfer schwerer Körperverletzung in der Öffentlichkeit | C81: Innerhalb eines Jahres | D81: =F81/100000 -> 0.0009428648789 | F81: 94.28648789 | G81: 1.68 | H81: 0.33 | I81: 0.36 | J81: 0.48 | K81: 0.22 | L81: 3.16 | M81: 4.69 | N81: 1.51 | O81: 4.7 | P81: 7.62 | Q81: 1.44 | R81: 1.25 | S81: 2.09 | T81: 0.39 | U81: 0.1 | V81: 0.18 | W81: 0.04 | X81: BMI (2018). Polizeiliche Kriminalstatistik (PKS) 2018. | Y81: https://www.bka.de/DE/AktuelleInformationen/StatistikenLagebilder/PolizeilicheKriminalstatistik/PKS2018/pks2018_node.html | Z81: Moderate Qualität der Daten (Dunkelziffer) | AA81: 2018 | AB81: Verbraucher | AC81: Gefährliche und schwere Körperverletzung auf Straßen, Wegen oder Plätzen (versucht und vollendet). | AD81: 408
A82: Recht | B82: In der Öffentlichkeit ausgeraubt werden | C82: Innerhalb eines Jahres | D82: =F82/100000 -> 0.0002066736817 | F82: 20.66736817 | G82: 1.66 | H82: 0.35 | I82: 0.46 | J82: 0.75 | K82: 0.16 | L82: 4.68 | M82: 8.12 | N82: 0.99 | O82: 4.35 | P82: 7.33 | Q82: 1.04 | R82: 1.06 | S82: 1.69 | T82: 0.41 | U82: 0.25 | V82: 0.32 | W82: 0.2 | X82: BMI (2018). Polizeiliche Kriminalstatistik (PKS) 2018. | Y82: https://www.bka.de/DE/AktuelleInformationen/StatistikenLagebilder/PolizeilicheKriminalstatistik/PKS2018/pks2018_node.html | Z82: Moderate Qualität der Daten (Dunkelziffer) | AA82: 2018 | AB82: Verbraucher | AC82: Gewaltkriminalität (versucht und vollendet). | AD82: 413
A83: Recht | B83: Kreditkarten- bzw. Kontodatenbetrug offline erleben | C83: Innerhalb eines Jahres | D83: =F83/100000 -> 0.01 | F83: =1000 -> 1000 | G83: 1 | H83: 1 | O83: 1 | P83: 1 | Q83: 1 | R83: 1 | S83: 1 | T83: 1 | U83: 1 | V83: 1 | W83: 1 | X83: Bitkom (2019). Jeder zweite Internetnutzer von Cyberkriminalität… | Y83: https://www.bitkom.org/Presse/Presseinformation/Jeder-zweite-Internetnutzer-von-Cyberkriminalitaet-betroffen | Z83: Niedrige Qualität der Daten (Niedrige Validität) | AA83: 2018 | AB83: erwachsene Internetnutzer | AC83: Bedrohung § 241 StGB (versucht und vollendet). | AD83: 411
A84: Digitale Risiken | B84: Persönliche Daten gegen eigenen Willen an Dritte | C84: Innerhalb eines Jahres | D84: =F84/100000 -> 0.23 | F84: 23000 | G84: 1 | H84: 1 | O84: 1 | P84: 1 | Q84: 1 | R84: 1 | S84: 1 | T84: 1 | U84: 1 | V84: 1 | W84: 1 | X84: Bitkom (2019). Jeder zweite Internetnutzer von Cyberkriminalität… | Y84: https://www.bitkom.org/Presse/Presseinformation/Jeder-zweite-Internetnutzer-von-Cyberkriminalitaet-betroffen | Z84: Sehr niedrige Qualität der Daten (Erfassung durch Selbstbericht) | AA84: 2017 | AB84: erwachsene Internetnutzer | AC84: Mord, Totschlag und Tötung auf Verlangen (versucht und vollendet). | AD84: 414
A85: Digitale Risiken | B85: Online schwer beleidigt / angegriffen werden | C85: Innerhalb eines Jahres | D85: =F85/100000 -> 0.1 | F85: 10000 | G85: 1 | H85: 1 | O85: 1 | P85: 1 | Q85: 1 | R85: 1 | S85: 1 | T85: 1 | U85: 1 | V85: 1 | W85: 1 | X85: Bitkom (2019). Jeder zweite Internetnutzer von Cyberkriminalität… | Y85: https://www.bitkom.org/Presse/Presseinformation/Jeder-zweite-Internetnutzer-von-Cyberkriminalitaet-betroffen | Z85: Sehr niedrige Qualität der Daten (Sehr niedrige Validität) | AA85: 2018 | AB85: erwachsene Internetnutzer | AC85: Sonstige Raubüberfälle auf Straßen, Wegen oder Plätzen (versucht und vollendet). | AD85: 406
A86: Digitale Risiken | B86: Online sexuell belästigt werden | C86: Innerhalb eines Jahres | D86: =F86/100000 -> 0.08 | F86: 8000 | G86: 1 | H86: 1 | O86: 1 | P86: 1 | Q86: 1 | R86: 1 | S86: 1 | T86: 1 | U86: 1 | V86: 1 | W86: 1 | X86: Bitkom (2019). Jeder zweite Internetnutzer von Cyberkriminalität… | Y86: https://www.bitkom.org/Presse/Presseinformation/Jeder-zweite-Internetnutzer-von-Cyberkriminalitaet-betroffen | Z86: Sehr niedrige Qualität der Daten (Sehr niedrige Validität) | AA86: 2018 | AB86: erwachsene Internetnutzer | AC86: Vorsätzliche einfache Körperverletzung § 223 StGB (versucht und vollendet). | AD86: 409
A87: Recht | B87: Offline schwer beleidigt / angegriffen werden | C87: Innerhalb eines Jahres | D87: =F87/100000 -> 0.25 | F87: 25000 | G87: 1 | H87: 1 | O87: 1 | P87: 1 | Q87: 1 | R87: 1 | S87: 1 | T87: 1 | U87: 1 | V87: 1 | W87: 1 | X87: Bitkom (2019). Jeder zweite Internetnutzer von Cyberkriminalität… | Y87: https://www.bitkom.org/Presse/Presseinformation/Jeder-zweite-Internetnutzer-von-Cyberkriminalitaet-betroffen | Z87: Sehr niedrige Qualität der Daten (Sehr niedrige Validität) | AA87: 2018 | AB87: erwachsene Internetnutzer | AC87: Mord § 211 StGB (versucht und vollendet). | AD87: 402
A88: Recht | B88: Offline sexuell belästigt werden | C88: Innerhalb eines Jahres | D88: =F88/100000 -> 0.14 | F88: 14000 | G88: 1 | H88: 1 | O88: 1 | P88: 1 | Q88: 1 | R88: 1 | S88: 1 | T88: 1 | U88: 1 | V88: 1 | W88: 1 | X88: Bitkom (2019). Jeder zweite Internetnutzer von Cyberkriminalität… | Y88: https://www.bitkom.org/Presse/Presseinformation/Jeder-zweite-Internetnutzer-von-Cyberkriminalitaet-betroffen | Z88: Sehr niedrige Qualität der Daten (Sehr niedrige Validität) | AA88: 2018 | AB88: erwachsene Internetnutzer | AC88: Straftaten insgesamt (versucht und vollendet). | AD88: 401
A89: Digitale Risiken | B89: Preisschwankungen beim Internethändler erleben | C89: Innerhalb eines Jahres | D89: =F89/100000 -> 0.348 | F89: 34800 | G89: 1 | H89: 1 | O89: 1 | P89: 1 | Q89: 1 | R89: 1 | S89: 1 | T89: 1 | U89: 1 | V89: 1 | W89: 1 | X89: Krämer, A., Kalka, R., & Ziehe, N. (2017). Personalisiertes und… | Y89: https://wiwi.hs-duesseldorf.de/personen/nikola.ziehe/Documents/Kraemer%20Kalka%20Ziehe%20-%20Personalisiertes%20und%20dynamisches%20Pricing%20aus%20Einzelhandels-%20und%20Verbrauchersicht%20261110F.pdf | Z89: Niedrige Qualität der Daten (Niedrige Validität) | AA89: 2017 | AB89: erwachsene Internetnutzer | AC89: Straftatverdacht | AD89: 220
A90: Digitale Risiken | B90: Preisschwankungen beim lokalen Händler erleben | C90: Innerhalb eines Jahres | D90: =F90/100000 -> 0.333 | F90: 33300 | G90: 1 | H90: 1 | O90: 1 | P90: 1 | Q90: 1 | R90: 1 | S90: 1 | T90: 1 | U90: 1 | V90: 1 | W90: 1 | X90: Krämer, A., Kalka, R., & Ziehe, N. (2017). Personalisiertes und… | Y90: https://wiwi.hs-duesseldorf.de/personen/nikola.ziehe/Documents/Kraemer%20Kalka%20Ziehe%20-%20Personalisiertes%20und%20dynamisches%20Pricing%20aus%20Einzelhandels-%20und%20Verbrauchersicht%20261110F.pdf | Z90: Sehr niedrige Qualität der Daten (Mangel an Evidenz) | AA90: 2017 | AB90: erwachsene Internetnutzer | AC90: Wohnungseinbruch | AD90: 218
A91: Digitale Risiken | B91: Finanzieller Verluste aufgrund Identitätsdiebstahl | C91: Innerhalb eines Jahres | D91: =F91/100000 -> 0.01730575 | F91: =0.29*5967.5 -> 1730.575 | G91: 1 | H91: 1 | O91: 1 | P91: 1 | Q91: 1 | R91: 1 | S91: 1 | T91: 1 | U91: 1 | V91: 1 | W91: 1 | X91: pwc. (2016). Identitätsklau - die Gefahr aus dem Netz. | Y91: https://www.pwc.de/de/handel-und-konsumguter/assets/cyber-security-identitaetsdiebstahl-2016.pdf | Z91: Sehr niedrige Qualität der Daten (Niedrige Validität), Alter der Daten | AA91: 2016 | AB91: erwachsene Internetnutzer | AC91: Ziviler Rechtsstreit. | AD91: 221
A92: Digitale Risiken | B92: Rechnungen für Einkäufe eines Identitätsdiebs | C92: Innerhalb eines Jahres | D92: =F92/100000 -> 0.01611225 | F92: =0.27*5967.5 -> 1611.225 | G92: 1 | H92: 1 | O92: 1 | P92: 1 | Q92: 1 | R92: 1 | S92: 1 | T92: 1 | U92: 1 | V92: 1 | W92: 1 | X92: pwc. (2016). Identitätsklau - die Gefahr aus dem Netz. | Y92: https://www.pwc.de/de/handel-und-konsumguter/assets/cyber-security-identitaetsdiebstahl-2016.pdf | Z92: Sehr niedrige Qualität der Daten (Niedrige Validität), Alter der Daten | AA92: 2016 | AB92: erwachsene Internetnutzer | AC92: Scheidung. | AD92: 222
A93: Recht | B93: Abmahnung aufgrund eines Identitätsdiebstahls | C93: Innerhalb eines Jahres | D93: =F93/100000 -> 0.01014475 | F93: =0.17*5967.5 -> 1014.475 | G93: 1 | H93: 1 | O93: 1 | P93: 1 | Q93: 1 | R93: 1 | S93: 1 | T93: 1 | U93: 1 | V93: 1 | W93: 1 | X93: pwc. (2016). Identitätsklau - die Gefahr aus dem Netz. | Y93: https://www.pwc.de/de/handel-und-konsumguter/assets/cyber-security-identitaetsdiebstahl-2016.pdf | Z93: Sehr niedrige Qualität der Daten (Niedrige Validität), Alter der Daten | AA93: 2016 | AB93: erwachsene Internetnutzer | AC93: Fahrlässige Körperverletzung § 229 StGB. | AD93: 410
A94: Finanzen | B94: Reduzierte Zahlungsoptionen beim Online-Einkauf | C94: Innerhalb eines Jahres | D94: =F94/100000 -> 0.094 | F94: 9400 | G94: 1 | H94: 1 | O94: 1 | P94: 1 | Q94: 1 | R94: 1 | S94: 1 | T94: 1 | U94: 1 | V94: 1 | W94: 1 | X94: Schufa (2018). SCHUFA Kredit-Kompass 2018. | Y94: https://www.schufa.de/media/editorial/ueber_uns/bilder/studien_und_publikationen/kredit_kompass/skk_2018/SCHUFA_Kredit-Kompass-2018.pdf | Z94: Sehr niedrige Qualität der Daten (Niedrige Validität), Verzerrungsrisiko | AA94: 2017 | AB94: erwachsene Internetnutzer | AC94: Wohnungsbrand. | AD94: 216
A95: Digitale Risiken | B95: Privatsphäreverletzung erleben | C95: Innerhalb eines Jahres | D95: =F95/100000 -> 0.03 | F95: 3000 | G95: 1 | H95: 1 | O95: 1 | P95: 1 | Q95: 1 | R95: 1 | S95: 1 | T95: 1 | U95: 1 | V95: 1 | W95: 1 | X95: Statistisches Amt der Europäischen Union (2015). | Y95: https://ec.europa.eu/eurostat/de/home | Z95: Niedrige Qualität der Daten (Niedrige Validität) | AA95: 2015 | AB95: erwachsene Internetnutzer | AC95: Leitungswasserschaden. | AD95: 217
A96: Digitale Risiken | B96: Opfer von Cyberkriminalität | C96: Innerhalb eines Jahres | D96: =F96/100000 -> 0.4425 | F96: =(38000+39000+2*50000)/4 -> 44250 | G96: 1 | H96: 1 | O96: 1 | P96: 1 | Q96: 1 | R96: 1 | S96: 1 | T96: 1 | U96: 1 | V96: 1 | W96: 1 | X96: Symantec. (2017). Norton Cyber Security Insights Report Global Results. | Y96: http://now.symassets.com/content/dam/norton/global/pdfs/norton_cybersecurity_insights/DE_NCSIR_2017.pdf | Z96: Niedrige Qualität der Daten (Niedrige Validität) | AA96: 2018 | AB96: erwachsene Internetnutzer | AC96: Leistungsfall der Rechtsschutzversicherung. | AD96: 78
A97: Digitale Risiken | B97: Persönliche digitale Daten werden gestohlen | C97: Innerhalb eines Jahres | D97: =F97/100000 -> 0.2167583333 | F97: =((0.43*44250)+23000*2)/3 -> 21675.83333 | G97: 1 | H97: 1 | O97: 1 | P97: 1 | Q97: 1 | R97: 1 | S97: 1 | T97: 1 | U97: 1 | V97: 1 | W97: 1 | X97: Symantec. (2017). Norton Cyber Security Insights Report Global Results. | Y97: http://now.symassets.com/content/dam/norton/global/pdfs/norton_cybersecurity_insights/DE_NCSIR_2017.pdf | Z97: Niedrige Qualität der Daten (Niedrige Validität) | AA97: 2018 | AB97: erwachsene Internetnutzer | AC97: Leistungsfall der Fahrzeugvollversicherung. | AD97: 79
A98: Digitale Risiken | B98: Virenbefall auf dem eigenen Computer | C98: Innerhalb eines Jahres | D98: =F98/100000 -> 0.181425 | F98: =0.41*44250 -> 18142.5 | G98: 1 | H98: 1 | O98: 1 | P98: 1 | Q98: 1 | R98: 1 | S98: 1 | T98: 1 | U98: 1 | V98: 1 | W98: 1 | X98: Symantec. (2017). Norton Cyber Security Insights Report Global Results. | Y98: http://now.symassets.com/content/dam/norton/global/pdfs/norton_cybersecurity_insights/DE_NCSIR_2017.pdf | Z98: Niedrige Qualität der Daten (Niedrige Validität) | AA98: 2017 | AB98: erwachsene Internetnutzer | AC98: Leistungsfall der technischen Versicherung. | AD98: 80
A99: Digitale Risiken | B99: Eigener Standort ungewollt abgefragt | C99: Innerhalb eines Jahres | D99: =F99/100000 -> 0.13275 | F99: =0.3*44250 -> 13275 | G99: 1 | H99: 1 | O99: 1 | P99: 1 | Q99: 1 | R99: 1 | S99: 1 | T99: 1 | U99: 1 | V99: 1 | W99: 1 | X99: Symantec. (2017). Norton Cyber Security Insights Report Global Results. | Y99: http://now.symassets.com/content/dam/norton/global/pdfs/norton_cybersecurity_insights/DE_NCSIR_2017.pdf | Z99: Niedrige Qualität der Daten (Niedrige Validität) | AA99: 2017 | AB99: erwachsene Internetnutzer | AC99: Leistungsfall der Wohngebäudeversicherung. | AD99: 81
A100: Digitale Risiken | B100: Onlinepasswort wird geknackt | C100: Innerhalb eines Jahres | D100: =F100/100000 -> 0.128325 | F100: =0.29*44250 -> 12832.5 | G100: 1 | H100: 1 | O100: 1 | P100: 1 | Q100: 1 | R100: 1 | S100: 1 | T100: 1 | U100: 1 | V100: 1 | W100: 1 | X100: Symantec. (2017). Norton Cyber Security Insights Report Global Results. | Y100: http://now.symassets.com/content/dam/norton/global/pdfs/norton_cybersecurity_insights/DE_NCSIR_2017.pdf | Z100: Niedrige Qualität der Daten (Niedrige Validität) | AA100: 2017 | AB100: erwachsene Internetnutzer | AC100: Leistungsfall einer Kraftfahrversicherung. | AD100: 82
A101: Digitale Risiken | B101: Fremde Personen im privaten W-Lan | C101: Innerhalb eines Jahres | D101: =F101/100000 -> 0.1239 | F101: =0.28*44250 -> 12390 | G101: 1 | H101: 1 | O101: 1 | P101: 1 | Q101: 1 | R101: 1 | S101: 1 | T101: 1 | U101: 1 | V101: 1 | W101: 1 | X101: Symantec. (2017). Norton Cyber Security Insights Report Global Results. | Y101: http://now.symassets.com/content/dam/norton/global/pdfs/norton_cybersecurity_insights/DE_NCSIR_2017.pdf | Z101: Niedrige Qualität der Daten (Niedrige Validität) | AA101: 2017 | AB101: erwachsene Internetnutzer | AC101: Leistungsfall einer Schadens-/Unfallversicherung. | AD101: 83
A102: Digitale Risiken | B102: Betrug beim Online-Einkauf | C102: Innerhalb eines Jahres | D102: =F102/100000 -> 0.12 | F102: 12000 | G102: 1 | H102: 1 | O102: 1 | P102: 1 | Q102: 1 | R102: 1 | S102: 1 | T102: 1 | U102: 1 | V102: 1 | W102: 1 | X102: Symantec. (2017). Norton Cyber Security Insights Report Global Results. | Y102: http://now.symassets.com/content/dam/norton/global/pdfs/norton_cybersecurity_insights/DE_NCSIR_2017.pdf | Z102: Niedrige Qualität der Daten (Niedrige Validität) | AA102: 2018 | AB102: erwachsene Internetnutzer | AC102: Leistungsfall einer Sachversicherung. | AD102: 84
A103: Digitale Risiken | B103: Digitaler Kreditkarten- bzw. Kontodatenbetrug | C103: Innerhalb eines Jahres | D103: =F103/100000 -> 0.1116833333 | F103: =(0.26*44250+11000*2)/3 -> 11168.33333 | G103: 1 | H103: 1 | O103: 1 | P103: 1 | Q103: 1 | R103: 1 | S103: 1 | T103: 1 | U103: 1 | V103: 1 | W103: 1 | X103: Symantec. (2017). Norton Cyber Security Insights Report Global Results. | Y103: http://now.symassets.com/content/dam/norton/global/pdfs/norton_cybersecurity_insights/DE_NCSIR_2017.pdf | Z103: Niedrige Qualität der Daten (Niedrige Validität) | AA103: 2018 | AB103: erwachsene Internetnutzer | AC103: Leistungsfall der privaten Sachversicherung. | AD103: 85
A104: Digitale Risiken | B104: In E-Mail-Konto bzw. soziales Netzwerk eingedrungen | C104: Innerhalb eines Jahres | D104: =F104/100000 -> 0.110625 | F104: =0.25*44250 -> 11062.5 | G104: 1 | H104: 1 | O104: 1 | P104: 1 | Q104: 1 | R104: 1 | S104: 1 | T104: 1 | U104: 1 | V104: 1 | W104: 1 | X104: Symantec. (2017). Norton Cyber Security Insights Report Global Results. | Y104: http://now.symassets.com/content/dam/norton/global/pdfs/norton_cybersecurity_insights/DE_NCSIR_2017.pdf | Z104: Niedrige Qualität der Daten (Niedrige Validität) | AA104: 2017 | AB104: erwachsene Internetnutzer | AC104: Leistungsfall der Kraftfahrzeug-Haftpflichtversicherung. | AD104: 86
A105: Digitale Risiken | B105: Zahlungsdaten werden vom Telefon kopiert | C105: Innerhalb eines Jahres | D105: =F105/100000 -> 0.1062 | F105: =0.24*44250 -> 10620 | G105: 1 | H105: 1 | O105: 1 | P105: 1 | Q105: 1 | R105: 1 | S105: 1 | T105: 1 | U105: 1 | V105: 1 | W105: 1 | X105: Symantec. (2017). Norton Cyber Security Insights Report Global Results. | Y105: http://now.symassets.com/content/dam/norton/global/pdfs/norton_cybersecurity_insights/DE_NCSIR_2017.pdf | Z105: Niedrige Qualität der Daten (Niedrige Validität) | AA105: 2017 | AB105: erwachsene Internetnutzer | AC105: Leistungsfall der Fahrzeugteilversicherung. | AD105: 87
A106: Digitale Risiken | B106: Zahlungsdaten nach Online-Einkauf missbraucht | C106: Innerhalb eines Jahres | D106: =F106/100000 -> 0.101775 | F106: =0.23*44250 -> 10177.5 | G106: 1 | H106: 1 | O106: 1 | P106: 1 | Q106: 1 | R106: 1 | S106: 1 | T106: 1 | U106: 1 | V106: 1 | W106: 1 | X106: Symantec. (2017). Norton Cyber Security Insights Report Global Results. | Y106: http://now.symassets.com/content/dam/norton/global/pdfs/norton_cybersecurity_insights/DE_NCSIR_2017.pdf | Z106: Niedrige Qualität der Daten (Niedrige Validität) | AA106: 2017 | AB106: erwachsene Internetnutzer | AC106: Leistungsfall der allgemeinen Haftpflichtversicherung. | AD106: 88
A107: Digitale Risiken | B107: Computer aus der Ferne sabotiert | C107: Innerhalb eines Jahres | D107: =F107/100000 -> 0.075225 | F107: =0.17*44250 -> 7522.5 | G107: 1 | H107: 1 | O107: 1 | P107: 1 | Q107: 1 | R107: 1 | S107: 1 | T107: 1 | U107: 1 | V107: 1 | W107: 1 | X107: Symantec. (2017). Norton Cyber Security Insights Report Global Results. | Y107: http://now.symassets.com/content/dam/norton/global/pdfs/norton_cybersecurity_insights/DE_NCSIR_2017.pdf | Z107: Niedrige Qualität der Daten (Niedrige Validität) | AA107: 2017 | AB107: erwachsene Internetnutzer | AC107: Leistungsfall der Schutzbriefversicherung. | AD107: 89
A108: Digitale Risiken | B108: Opfer von digitalem Identitätsdiebstahl | C108: Innerhalb eines Jahres | D108: =F108/100000 -> 0.0685875 | F108: =0.155*44250 -> 6858.75 | G108: 1 | H108: 1 | O108: 1 | P108: 1 | Q108: 1 | R108: 1 | S108: 1 | T108: 1 | U108: 1 | V108: 1 | W108: 1 | X108: Symantec. (2017). Norton Cyber Security Insights Report Global Results. | Y108: http://now.symassets.com/content/dam/norton/global/pdfs/norton_cybersecurity_insights/DE_NCSIR_2017.pdf | Z108: Niedrige Qualität der Daten (Niedrige Validität) | AA108: 2017 | AB108: erwachsene Internetnutzer | AC108: Leistungsfall der Hausratversicherung. | AD108: 90
A109: Digitale Risiken | B109: Auf Smarthome-Gerät greifen Fremde zu | C109: Innerhalb eines Jahres | D109: =F109/100000 -> 0.057525 | F109: =0.13*44250 -> 5752.5 | G109: 1 | H109: 1 | O109: 1 | P109: 1 | Q109: 1 | R109: 1 | S109: 1 | T109: 1 | U109: 1 | V109: 1 | W109: 1 | X109: Symantec. (2017). Norton Cyber Security Insights Report Global Results. | Y109: http://now.symassets.com/content/dam/norton/global/pdfs/norton_cybersecurity_insights/DE_NCSIR_2017.pdf | Z109: Niedrige Qualität der Daten (Niedrige Validität) | AA109: 2017 | AB109: erwachsene Internetnutzer | AC109: Leistungsfall der privaten Unfallversicherung. | AD109: 91
A110: Digitale Risiken | B110: Berufliche Nachteile durch eigene Texte erleben | C110: Innerhalb eines Jahres | D110: =F110/100000 -> 0.0531 | F110: =0.12*44250 -> 5310 | G110: 1 | H110: 1 | O110: 1 | P110: 1 | Q110: 1 | R110: 1 | S110: 1 | T110: 1 | U110: 1 | V110: 1 | W110: 1 | X110: Symantec. (2017). Norton Cyber Security Insights Report Global Results. | Y110: http://now.symassets.com/content/dam/norton/global/pdfs/norton_cybersecurity_insights/DE_NCSIR_2017.pdf | Z110: Niedrige Qualität der Daten (Niedrige Validität) | AA110: 2017 | AB110: erwachsene Internetnutzer | AC110: Leistungsfall der Kraftfahrtunfallversicherung. | AD110: 92
